[Event "16th HSG Open-A 2022"]
[Site "Hilversum"]
[Date "2022.06.18"]
[Round "3.10"]
[White "Floor, Dirk"]
[Black "Wagenvoorde, Guido"]
[Result "1/2-1/2"]
[ECO "A49"]
[WhiteElo "2203"]
[BlackElo "2090"]
[Annotator "TA"]
[PlyCount "60"]
[EventDate "2022.06.17"]
[EventCountry "NED"]
[SourceTitle "playchess.com"]
[Source "ChessBase"]
[SourceQuality "1"]
[TimeControl "6600+10"]

{[%evp 12,60,20,22,34,0,25,0,0,0,2,0,0,0,0,0,0,0,0,-25,0,-14,0,-4,37,45,56,60,146,73,81,37,35,37,107,14,11,-21,18,30,16,0,0,0,0,0,0,0,-5,-5,0]} 1. Nf3 {[%emt 0:00:01]} Nf6 {[%emt 0:00:26]} 2. g3 {[%emt 0:00:45]} g6 {[%emt 0:00:15]} 3. Bg2 {[%emt 0:00:30]} Bg7 {[%emt 0:00:09]} 4. d4 {[%emt 0:00:16]} O-O {[%emt 0:00:20]} 5. O-O {[%emt 0:00:10]} d6 {[%emt 0:00:15]} 6. a4 {[%emt 0:00:57]} a5 {[%emt 0:05:18]} 7. Nc3 {[%emt 0:02:21]} Nbd7 {[%emt 0:01:44] A49: 1 d4 Nf6 2 Nf3 g6 3 g3: Anti-King's Indian systems.} 8. d5 {[%emt 0:01:55]} e5 {[%emt 0:07:10]} 9. dxe6 {[%emt 0:01:44]} fxe6 {[%emt 0:01:35]} 10. e4 {[%emt 0:03:59][%cal Oe4e5]} e5 {[%emt 0:12:21] [#]} 11. Ne1 $146 {[%emt 0:04:16]} (11. Be3 {is more complex.} Ng4 12. Bg5 Ngf6 13. Nd2) ({Predecessor:} 11. Nd2 Nc5 12. Re1 Be6 13. Bf1 Qd7 14. f3 Bh6 15. b3 Bh3 16. Ba3 Bxf1 17. Nxf1 {1-0 (55) Unat,C (2130)-Risteski,E (2367) Belgrade 2021}) 11... Nc5 {[%emt 0:04:39]} 12. Be3 {[%emt 0:04:21]} Qe7 {[%emt 0:09:57]} 13. f3 {[%emt 0:06:54]} Be6 {[%emt 0:04:10]} 14. Nd3 {[%emt 0:05:11]} b6 {[%emt 0:03:24]} 15. Rf2 {[%emt 0:04:20]} Rad8 {[%emt 0:06:10]} 16. Rd2 {[%emt 0:02:12]} Rfe8 {[%emt 0:08:31]} 17. Bf1 {[%emt 0:04:28]} Qf8 {[%emt 0:03:43]} 18. Nxc5 {[%emt 0:05:30]} bxc5 {[%emt 0:00:18]} 19. Bb5 {[%emt 0:03:06]} Nd7 {[%emt 0:04:53] [#]} ({Black should try} 19... Re7 $14) 20. Qe2 {[%emt 0:07:05]} (20. Nd5 $142 $1 {[%cal Rd5c7]} Bxd5 21. Rxd5) 20... Bh6 $16 {[%emt 0:02:16]} 21. Kg2 {[%emt 0:05:05]} Bxe3 {[%emt 0:01:54]} 22. Qxe3 {[%emt 0:00:08]} Qf7 {[%emt 0:00:25]} (22... Rc8 $14) 23. Bc6 {[%emt 0:00:55]} ({White should play} 23. Nd5 $16 Bxd5 24. Rxd5) 23... Rf8 $11 {[%emt 0:02:16]} 24. Bd5 {[%emt 0:06:35]} Nf6 {[%emt 0:06:32]} 25. Bxe6 {[%emt 0:00:20]} Qxe6 {[%emt 0:00:29]} 26. Nd5 {[%emt 0:01:43] The position is equal.} Nxd5 {[%emt 0:00:19]} 27. Rxd5 {[%emt 0:00:22]} Rb8 {[%emt 0:00:25]} 28. b3 {[%emt 0:03:59]} Rb4 {[%emt 0:07:17]} 29. c4 {[%emt 0:02:35]} Rfb8 {[%emt 0:00:13]} 30. Rd3 {[%emt 0:00:29]} Kg7 {[%emt 0:00:07] Weighted Error Value: White=0.18 (very precise) /Black=0.14 (very precise)} 1/2-1/2

[Event "16th HSG Open-A 2022"]
[Site "Hilversum"]
[Date "2022.06.18"]
[Round "3.11"]
[White "Bloem, Mark"]
[Black "Becx, Cesar"]
[Result "0-1"]
[ECO "C63"]
[WhiteElo "1942"]
[BlackElo "2101"]
[Annotator "NA RC"]
[PlyCount "126"]
[EventDate "2022.06.17"]
[EventCountry "NED"]
[SourceTitle "playchess.com"]
[Source "ChessBase"]
[SourceQuality "1"]
[TimeControl "6600+10"]

1. e4 {[%emt 0:00:03]} e5 {[%emt 0:00:09]} 2. Nf3 {[%emt 0:00:07]} Nc6 {[%emt 0:00:14]} 3. Bb5 {[%emt 0:00:09]} f5 {[%emt 0:01:24]} 4. d3 {[%emt 0:11:13]} fxe4 {[%emt 0:00:16]} 5. dxe4 {[%emt 0:00:39]} Nf6 {[%emt 0:00:05]} 6. O-O {[%emt 0:03:27]} Bc5 {[%emt 0:00:27]} 7. Nc3 {[%emt 0:01:15]} d6 {[%emt 0:00:16]} 8. h3 {[%emt 0:03:03]} O-O {[%emt 0:00:26]} 9. Na4 {[%emt 0:11:13]} Bb6 {[%emt 0:15:24]} 10. Nxb6 {[%emt 0:02:34]} axb6 {[%emt 0:00:05]} 11. Re1 {[%emt 0:02:12]} Kh8 {[%emt 0:06:37]} 12. Bd2 {[%emt 0:09:10]} Be6 {[%emt 0:03:19]} 13. a3 {[%emt 0:03:20]} Ne7 {[%emt 0:01:21]} 14. Qe2 {[%emt 0:04:20]} Ng6 {[%emt 0:13:49]} 15. Rad1 $11 {[%emt 0:05:35]} Qe7 {[%emt 0:14:13]} 16. Bg5 {[%emt 0:14:58]} h6 {[%emt 0:03:50]} 17. Bc1 {[%emt 0:03:09]} Qf7 {[%emt 0:07:01]} 18. Rf1 {[%emt 0:10:26]} Rad8 {[%emt 0:08:21]} 19. Bd3 {[%emt 0:06:46]} Rde8 {[%emt 0:04:02]} 20. c4 {[%emt 0:00:51]} Nh7 {[%emt 0:02:20]} 21. Nh2 {[%emt 0:01:56]} Nf4 {[%emt 0:05:58]} 22. Bxf4 {[%emt 0:00:30]} Qxf4 {[%emt 0:01:02]} 23. Bc2 {[%emt 0:03:02]} Qh4 {[%emt 0:01:33]} 24. Ng4 {[%emt 0:03:31]} h5 {[%emt 0:03:35]} 25. Ne3 {[%emt 0:00:32]} g6 {[%emt 0:04:04]} 26. Nd5 {[%emt 0:00:28]} Rf7 {[%emt 0:02:31]} 27. Rd3 {[%emt 0:01:34]} Ref8 {[%emt 0:03:13]} 28. Rc3 {[%emt 0:01:03]} Ng5 {[%emt 0:00:43]} 29. Rg3 {[%emt 0:02:13]} Bxh3 {[%emt 0:03:00]} 30. Qe3 {[%emt 0:03:11]} Bg4 {[%emt 0:01:27]} 31. f4 {[%emt 0:01:39]} Nh7 {[%emt 0:01:15]} 32. f5 {[%emt 0:00:44]} gxf5 {[%emt 0:00:35]} 33. exf5 {[%emt 0:00:04]} Bxf5 {[%emt 0:01:35]} 34. Bxf5 {[%emt 0:00:35]} Rxf5 {[%emt 0:00:06]} 35. Rgf3 {[%emt 0:00:08]} Rxf3 {[%emt 0:00:13]} 36. Rxf3 {[%emt 0:00:05]} Rxf3 {[%emt 0:00:37]} 37. Qxf3 {[%emt 0:00:02]} Qxc4 {[%emt 0:00:12]} 38. Qf7 {[%emt 0:00:13]} Qc1+ {[%emt 0:00:50]} 39. Kh2 {[%emt 0:00:08]} c6 {[%emt 0:00:03]} 40. Qe8+ {[%emt 0:00:10]} Kg7 {[%emt 0:00:02]} 41. Qe7+ {[%emt 0:00:08]} Kg8 {[%emt 0:00:26]} 42. Qe6+ {[%emt 0:00:04]} Kg7 {[%emt 0:00:12]} 43. Qe7+ {[%emt 0:00:02]} Kg6 {[%emt 0:00:11]} 44. Qxd6+ {[%emt 0:00:23]} Kf5 {[%emt 0:00:15]} 45. Ne7+ {[%emt 0:00:08]} Kf4 {[%emt 0:00:11]} 46. Qh6+ {[%emt 0:00:19]} Ng5 {[%emt 0:00:02]} 47. Qf6+ {[%emt 0:00:02]} Ke4 {[%emt 0:00:05]} 48. Qf5+ {[%emt 0:00:04]} Kd4 {[%emt 0:00:05]} 49. Qf2+ {[%emt 0:00:24]} Kd3 {[%emt 0:00:06]} 50. Qf5+ {[%emt 0:00:19]} Kd4 {[%emt 0:00:02]} 51. Qf2+ {[%emt 0:00:04]} Kc4 {[%emt 0:00:02]} 52. Qe2+ {[%emt 0:00:12]} Kd4 {[%emt 0:00:28]} 53. Qf2+ {[%emt 0:00:03]} Ke4 {[%emt 0:00:14]} 54. Qf5+ {[%emt 0:00:03]} Kd4 {[%emt 0:00:03]} 55. Qf2+ {[%emt 0:00:01]} Kc4 {[%emt 0:00:07]} 56. Qe2+ {[%emt 0:00:12]} Kb3 {[%emt 0:00:10]} 57. Qxe5 {[%emt 0:00:11]} h4 {[%emt 0:00:22]} 58. Nf5 {[%emt 0:00:16]} h3 {[%emt 0:00:18]} 59. Nd4+ {[%emt 0:00:04]} Ka2 {[%emt 0:00:07]} 60. Ne2 {[%emt 0:00:26]} Qxb2 {[%emt 0:00:16]} 61. Nc3+ {[%emt 0:00:23]} Kxa3 {[%emt 0:00:01]} 62. Qe7+ {[%emt 0:00:10]} Kb3 {[%emt 0:00:05]} 63. Qxg5 {[%emt 0:00:11]} Qxg2+ {[%emt 0:00:39]} 0-1

[Event "16th HSG Open-A 2022"]
[Site "Hilversum"]
[Date "2022.06.18"]
[Round "3.12"]
[White "Konings, Frans"]
[Black "Klaren, Oscar"]
[Result "1-0"]
[ECO "A61"]
[WhiteElo "2136"]
[BlackElo "1878"]
[Annotator "NA RC"]
[PlyCount "51"]
[EventDate "2022.06.17"]
[EventCountry "NED"]
[SourceTitle "playchess.com"]
[Source "ChessBase"]
[SourceQuality "1"]
[TimeControl "6600+10"]

1. d4 {[%emt 0:00:16]} Nf6 {[%emt 0:00:08]} 2. c4 {[%emt 0:00:11]} c5 {[%emt 0:00:04]} 3. d5 {[%emt 0:00:08]} e6 {[%emt 0:00:04]} 4. Nc3 {[%emt 0:00:11]} exd5 {[%emt 0:00:05]} 5. cxd5 {[%emt 0:00:06]} d6 {[%emt 0:00:07]} 6. Nf3 {[%emt 0:01:21]} g6 {[%emt 0:00:06]} 7. Bf4 {[%emt 0:00:22]} Bg7 {[%emt 0:00:25]} 8. Qa4+ {[%emt 0:00:07]} Bd7 {[%emt 0:00:06]} 9. Qb3 {[%emt 0:00:04]} b5 {[%emt 0:00:16]} 10. Bxd6 {[%emt 0:00:54]} Qb6 {[%emt 0:00:10]} 11. Be5 {[%emt 0:00:06]} O-O {[%emt 0:00:19]} 12. e3 {[%emt 0:00:07]} c4 {[%emt 0:00:17]} 13. Qd1 {[%emt 0:00:24]} b4 {[%emt 0:01:23]} 14. Ne2 {[%emt 0:02:41]} Rc8 {[%emt 0:00:36]} 15. Nf4 {[%emt 0:00:16]} Qa5 {[%emt 0:00:59]} 16. Qd4 {[%emt 0:04:08]} Ba4 {[%emt 0:31:31]} 17. Bxf6 {[%emt 0:04:23]} Bxf6 {[%emt 0:00:05]} 18. Qxf6 {[%emt 0:00:04]} Nd7 {[%emt 0:00:13]} 19. Qd4 {[%emt 0:00:37]} c3 {[%emt 0:00:05]} 20. Bd3 {[%emt 0:07:11]} cxb2 {[%emt 0:26:51]} 21. Qxb2 {[%emt 0:02:48]} Rc2 $18 {[%emt 0:09:43]} 22. Bxc2 {[%emt 0:08:52]} b3+ {[%emt 0:00:08]} 23. Nd2 {[%emt 0:06:09]} bxc2 {[%emt 0:00:06]} 24. Qd4 {[%emt 0:01:14]} Rb8 {[%emt 0:01:03]} 25. O-O {[%emt 0:00:22]} Rb4 {[%emt 0:03:02]} 26. Qc3 {[%emt 0:00:20]} 1-0

[Event "16th HSG Open-A 2022"]
[Site "Hilversum"]
[Date "2022.06.18"]
[Round "4.1"]
[White "Beerdsen, Thomas"]
[Black "Elgersma, Onno"]
[Result "1-0"]
[ECO "B12"]
[WhiteElo "2497"]
[BlackElo "2303"]
[Annotator "TA"]
[PlyCount "67"]
[EventDate "2022.06.17"]
[EventCountry "NED"]
[SourceTitle "playchess.com"]
[Source "ChessBase"]
[SourceQuality "1"]
[TimeControl "6600+10"]

{[%evp 14,67,17,0,0,0,0,0,9,8,7,-13,-4,-16,-9,-24,0,0,76,68,87,74,77,83,85,62,55,43,98,121,175,70,361,343,583,599,588,454,423,369,356,370,548,386,597,585,630,622,630,629,624,602,617,589,1459,894]} 1. e4 {[%emt 0:00:03][%cal Be2e4,Be4e5][%mdl 32]} c6 {[%emt 0:00:05]} 2. d4 {[%emt 0:00:06]} d5 {[%emt 0:00:04]} 3. e5 {[%emt 0:00:06]} Bf5 {[%emt 0:00:05]} 4. h4 {[%emt 0:00:13]} h5 {[%emt 0:00:32]} 5. c4 {[%emt 0:00:19]} e6 {[%emt 0:00:04]} 6. Nc3 {[%emt 0:00:36]} dxc4 {[%emt 0:01:33]} 7. Bxc4 {[%emt 0:00:28]} Nd7 {[%emt 0:00:04]} 8. Nge2 {[%emt 0:02:23]} Be7 {[%emt 0:00:05] B12: Caro-Kann: Advance Variation.} 9. Ng3 {[%emt 0:02:55]} Bg6 {[%emt 0:08:52]} 10. Nge2 {[%emt 0:00:07]} Bf5 {[%emt 0:01:28] The position is equal.} 11. g3 {[%emt 0:00:06]} Nh6 {[%emt 0:00:32]} 12. Bf4 {[%emt 0:00:06] [#]} Qb6 $146 {[%emt 0:08:40]} ({Predecessor:} 12... Ng4 13. Qd2 Qa5 14. O-O Rd8 15. Qc1 Nb6 16. Bb3 c5 17. Rd1 O-O 18. Bd2 Qa6 19. Bg5 Bxg5 20. Qxg5 c4 {0-1 (62) Vidit,S (2727)-Keymer,V (2664) Chess.com INT 2022}) 13. Qd2 {[%emt 0:03:46]} Rd8 {[%emt 0:00:52]} 14. Rd1 {[%emt 0:06:30]} Ng4 {[%emt 0:09:54][%cal Od7e5] ...Ndxe5! is the strong threat.} (14... c5 $5 {[%cal Rh6g4]}) 15. Qc1 $1 {[%emt 0:06:55]} Qb4 {[%emt 0:13:37]} (15... c5 $11 {keeps the balance.}) 16. Bb3 $16 {[%emt 0:01:35][%cal Bc4b3,Bb3c2,Bc2e4,Be4b7][%mdl 32]} Be4 {[%emt 0:18:21]} 17. O-O {[%emt 0:05:48]} (17. a3 Qxb3 18. Nxe4 Qf3 $17) 17... Bf3 {[%emt 0:00:18]} 18. Bd2 {[%emt 0:07:12][%cal Oc3d5]} Qb6 {[%emt 0:01:51]} 19. Bg5 {[%emt 0:00:16]} Bxg5 $1 {[%emt 0:29:22]} 20. Qxg5 {[%emt 0:00:10]} O-O {[%emt 0:04:17] [#]} ({Black should play} 20... g6 $1 $14) 21. Bc2 $1 {[%emt 0:11:03]} c5 {[%emt 0:05:09]} (21... Qxb2 $16 22. Rd2 Qb4) 22. Nf4 {[%emt 0:07:05] Dancing on a razor blade.} ({Much worse is} 22. Na4 $6 Qb4 23. Nf4 (23. Qxh5 f5 $15) 23... Bxd1 24. Nxh5 g6 25. Bxd1 Qxd4 26. Bxg4 Qxe5 $11) (22. Qxh5 $18 {[%csl Gc2][%cal Rh5h7]} f5 23. exf6 Ndxf6 24. Qxc5) 22... Nh6 $2 {[%emt 0:03:19][%mdl 8192] [#] This move loses the game for Black.} (22... Bxd1 $2 {[#]} 23. Nxh5 $1 g6 24. Bxd1 cxd4 25. Ne4 $18) (22... cxd4 $14 23. Nxh5 (23. Qxh5 $2 f5 $17) 23... g6 24. Bxg6 Kh8) 23. Ne4 $1 $18 {[%emt 0:06:15] White wants to mate with Nf6+.} Bxe4 {[%emt 0:03:00]} (23... Qxb2 {keeps fighting.} 24. Nf6+ Kh8) (23... Kh8 24. Nf6) 24. Bxe4 {[%emt 0:00:14]} f5 {[%emt 0:01:00]} 25. Nxh5 {[%emt 0:01:13][%csl Gh5][%cal Rg5g7]} Rf7 {[%emt 0:01:01]} 26. dxc5 {[%emt 0:00:26]} Qc7 {[%emt 0:00:12]} 27. Bxb7 {[%emt 0:02:19] Hoping for c6.} Rb8 {[%emt 0:00:04]} (27... Rdf8 {was worth a try.} 28. Bg2 Qxc5 29. Nxg7 Rxg7) 28. Bg2 {[%emt 0:01:05]} Nxc5 {[%emt 0:00:15]} (28... Ng4 $142 29. Nf4 Nf8) 29. Rd6 {[%emt 0:02:00] White is clearly winning.} Qe7 {[%emt 0:00:11]} 30. Rc1 {[%emt 0:01:31]} Ne4 {[%emt 0:00:11]} 31. Bxe4 {[%emt 0:00:40]} fxe4 {[%emt 0:00:01]} 32. Nf6+ {[%emt 0:00:14]} Kh8 {[%emt 0:00:15]} 33. Nxe4 {[%emt 0:00:41] Black must now prevent Qg6.} Nf5 {[%emt 0:00:14]} 34. Qh5+ {[%emt 0:00:21] Weighted Error Value: White=0.18 (very precise) /Black=0.52} 1-0

[Event "16th HSG Open-A 2022"]
[Site "Hilversum"]
[Date "2022.06.18"]
[Round "4.2"]
[White "Harff, Marcel"]
[Black "Lanchava, Tea"]
[Result "1/2-1/2"]
[WhiteElo "2336"]
[BlackElo "2232"]
[Annotator "TA"]
[PlyCount "28"]
[EventDate "2022.06.17"]
[EventCountry "NED"]
[SourceTitle "playchess.com"]
[Source "ChessBase"]
[SourceQuality "1"]
[TimeControl "6600+10"]

{[%evp 9,15,21,21,24,70,72,70,40]} 1. c4 {[%emt 0:00:04]} g6 {[%emt 0:00:13]} 2. g3 {[%emt 0:00:20]} Bg7 {[%emt 0:00:21]} 3. Bg2 {[%emt 0:00:03]} c6 {[%emt 0:01:07]} 4. Nc3 {[%emt 0:00:25]} d6 {[%emt 0:01:49]} 5. Nf3 {[%emt 0:00:53]} Nd7 {[%emt 0:01:40]} 6. d4 {[%emt 0:00:18] A10: English Opening: Unusual Replies for Black.} Nh6 {[%emt 0:01:55]} (6... Ngf6 $11) 7. O-O {[%emt 0:00:26] White is more active.} O-O {[%emt 0:00:17]} 8. Qc2 {[%emt 0:05:23] [#]} {Predecessor:} f5 $146 9. Ng5 Nb6 10. d5 Bd7 11. dxc6 bxc6 12. b3 Rc8 13. Rd1 Nf7 14. Nxf7 Rxf7 {1-0 (27) Hernandez Bacallado,B (1824)-Haenen,T (1823) Las Palmas 2013} 1/2-1/2

[Event "16th HSG Open-A 2022"]
[Site "Hilversum"]
[Date "2022.06.18"]
[Round "4.3"]
[White "Pham, Khoi"]
[Black "Grutter, Tim"]
[Result "0-1"]
[ECO "B48"]
[WhiteElo "2291"]
[BlackElo "2241"]
[Annotator "TA"]
[PlyCount "76"]
[EventDate "2022.06.17"]
[EventCountry "NED"]
[SourceTitle "playchess.com"]
[Source "ChessBase"]
[SourceQuality "1"]
[TimeControl "6600+10"]

{[%evp 11,76,26,28,2,15,11,11,0,4,1,-2,-8,0,-32,-30,-32,-30,-35,-39,-19,-22,-63,-86,-181,-184,-442,-415,-385,-181,-179,-45,-46,-33,-127,-123,-156,-75,-64,0,-1,0,-6,0,-25,-22,-23,-29,-16,0,-24,-14,-20,-29,-26,-19,-67,-47,-59,-51,-49,-60,-59,0,-1113,-1145,-968,-459]} 1. e4 {[%emt 0:00:01]} c5 {[%emt 0:00:05]} 2. Nf3 {[%emt 0:00:04]} e6 {[%emt 0:00:03]} 3. d4 {[%emt 0:00:06]} cxd4 {[%emt 0:00:04]} 4. Nxd4 {[%emt 0:00:05]} Nc6 {[%emt 0:00:04]} 5. Nc3 {[%emt 0:00:07]} Qc7 {[%emt 0:00:04]} 6. Be3 {[%emt 0:00:06]} a6 {[%emt 0:00:03]} 7. g4 {[%emt 0:00:05] is more profitable than 7.Qd2 at the moment. B48: Sicilian: Taimanov: 5 Nc3 Qc7 6 Be3 a6 without Be2.} b5 {[%emt 0:00:04]} 8. Nxc6 {[%emt 0:00:11]} Qxc6 {[%emt 0:00:03]} 9. Qd2 {[%emt 0:00:07] The position is equal.} Bb7 {[%emt 0:00:03]} 10. f3 {[%emt 0:01:24]} b4 {[%emt 0:01:28]} 11. Ne2 {[%emt 0:01:35]} d5 {[%emt 0:01:02] [#]} 12. Nd4 $146 {[%emt 0:07:04]} ({Predecessor:} 12. O-O-O Nf6 13. e5 Nd7 14. Bd4 Be7 15. Kb1 O-O 16. Rc1 a5 17. f4 Nb6 18. b3 {0-1 (31) Lavrencic,M (2159)-Richter,N (2365) Terme Catez 2022}) 12... Qc7 {[%emt 0:01:01]} 13. exd5 {[%emt 0:11:57]} Bxd5 {[%emt 0:01:36]} 14. O-O-O {[%emt 0:01:54]} Nf6 {[%emt 0:07:18][%cal Bg8f6,Bf6d7,Bd7c5,Bc5e6][%mdl 32]} 15. g5 {[%emt 0:08:28]} Nd7 {[%emt 0:02:51]} 16. Bg2 {[%emt 0:01:11]} Bc5 {[%emt 0:05:44]} 17. Nf5 {[%emt 0:10:03]} O-O $19 {[%emt 0:05:49] [#] Strongly threatening ...Rad8.} 18. Bxc5 $2 {[%emt 0:00:49]} (18. Kb1) 18... Nxc5 {[%emt 0:04:56]} (18... Qxc5 19. Qd4 exf5 20. Qxc5 (20. Qxd5 Rac8 $11) 20... Nxc5 21. Rxd5 $11) 19. Qd4 {[%emt 0:00:15][%csl Gf5][%cal Rd4g7]} exf5 {[%emt 0:00:16]} (19... f6 $142 20. c4 bxc3) 20. Qxd5 {[%emt 0:00:05]} a5 {[%emt 0:07:51]} ({Better is} 20... Rac8 $19 {[%cal Oc5e4] White must now prevent ...Ne4!} 21. Kb1 (21. Qxf5 $2 g6 $19) 21... Ne6 22. Qxf5 g6) 21. Qd6 $15 {[%emt 0:01:44]} Qc8 {[%emt 0:01:16]} 22. Rd5 {[%emt 0:01:27]} (22. Rhe1 $15) 22... Ne6 $17 {[%emt 0:00:51]} 23. f4 {[%emt 0:02:44]} Ra6 {[%emt 0:03:25]} ({Black should play} 23... Qc4 {...Rac8 is the strong threat.} 24. b3 Qxf4+ 25. Qxf4 Nxf4) 24. Qe5 {[%emt 0:01:56]} Rc6 {[%emt 0:02:21]} (24... a4 $15 25. Rd2 (25. Qxf5 b3 $17) 25... Qc4) 25. Rd2 $1 $11 {[%emt 0:01:23]} Rc5 {[%emt 0:02:13]} 26. Bd5 {[%emt 0:02:09]} a4 {[%emt 0:19:53][%cal Ob4b3] And now ...b3! would win.} 27. Qe3 {[%emt 0:16:56] Against b3} b3 {[%emt 0:04:28]} 28. axb3 {[%emt 0:02:30]} axb3 {[%emt 0:00:13]} 29. Qxb3 {[%emt 0:02:06]} Ra5 {[%emt 0:03:56][%cal Ra5a1]} 30. c3 {[%emt 0:02:45]} Nxf4 $40 {[%emt 0:02:49][%mdl 128] White needs to defend precisely.} 31. Rhd1 $1 {[%emt 0:02:00][%cal Od5f7]} Nxd5 {[%emt 0:02:08]} 32. Rxd5 {[%emt 0:00:04]} Qe6 {[%emt 0:01:25]} 33. Kc2 {[%emt 0:02:16]} (33. c4 $11 Raa8 34. Qc3) 33... Qe2+ {[%emt 0:01:04]} 34. R1d2 {[%emt 0:02:25]} Qe4+ {[%emt 0:00:04]} 35. R5d3 {[%emt 0:00:26]} f4 {[%emt 0:01:11]} 36. h4 $1 {[%emt 0:01:44]} Ra1 {[%emt 0:02:37]} (36... Re5 $15) 37. Qd5 $2 {[%emt 0:02:08][%mdl 8192]} (37. Qb4 $11 Qf5 38. Qb7) 37... Qa4+ $19 {[%emt 0:00:35]} ({Not} 37... Qe1 38. Rd1 Qe2+ 39. R1d2 $17) 38. Qb3 {[%emt 0:00:04] [#]} Rc1+ $3 {[%emt 0:00:04][%mdl 512] Weighted Error Value: White=0.52/Black=0.21 (precise)} 0-1

[Event "16th HSG Open-A 2022"]
[Site "Hilversum"]
[Date "2022.06.18"]
[Round "4.4"]
[White "Wiersma, Eelke"]
[Black "Konings, Frans"]
[Result "1/2-1/2"]
[ECO "A43"]
[WhiteElo "2299"]
[BlackElo "2136"]
[Annotator "TA"]
[PlyCount "25"]
[EventDate "2022.06.17"]
[EventCountry "NED"]
[SourceTitle "playchess.com"]
[Source "ChessBase"]
[SourceQuality "1"]
[TimeControl "6600+10"]

{[%evp 20,25,65,63,79,36,33,32]} 1. e4 {[%emt 1:50:20]} d6 {[%emt 0:00:29]} 2. d4 {[%emt 0:00:00]} Nf6 {[%emt 0:00:12]} 3. Nc3 {[%emt 0:00:00]} g6 {[%emt 0:00:05]} 4. Nf3 {[%emt 0:00:00]} Bg7 {[%emt 0:00:10]} 5. Be2 {[%emt 0:00:00]} O-O {[%emt 0:00:06]} 6. O-O {[%emt 0:00:00]} Na6 {[%emt 0:00:53]} 7. Re1 {[%emt 0:00:00]} c5 {[%emt 0:02:56]} 8. d5 {[%emt 0:00:00]} Nc7 {[%emt 0:00:17]} 9. a4 {[%emt 0:00:00]} Bg4 {[%emt 0:05:42]} 10. h3 {[%emt 0:00:00]} Bxf3 {[%emt 0:00:05]} 11. Bxf3 {[%emt 0:00:00]} Nd7 {[%emt 0:00:50] A43: Schmid Benoni.} 12. g3 {[%emt 0:00:00] White is more active.} a6 {[%emt 0:01:51] [#]} 13. Bg2 $146 {[%emt 0:00:00]} ({Predecessor:} 13. Be2 b6 14. Be3 Rb8 15. Qd2 Re8 16. Rab1 b5 17. axb5 Nxb5 18. Nxb5 axb5 19. b4 {1-0 (52) Seoev,R-Rosenfeld,I Novgorod 1961}) 1/2-1/2